fUST/lending_fUST_20250810
["ID","MTS","AMOUNT","RATE_DAILY","PERIOD"]
[378265306,1754806238599,-201.824415,0.00021346,2]
[378265308,1754806238608,-300.0,0.00021442,2]
[378265310,1754806238618,-300.0,0.00021442,2]
[378265311,1754806238628,-44.26975104,0.00021442,2]
[378265367,1754806240867,-255.73024896,0.00021442,2]
[378265368,1754806240877,-300.0,0.00021442,2]
[378265369,1754806240887,-1200.0,0.00021443,2]
[378265370,1754806240896,-581.33410772,0.00021444,2]
[378265371,1754806240906,-460.0,0.00021444,2]
[378265373,1754806240916,-1200.0,0.00021444,2]
[378265374,1754806240925,-516.90875237,0.00021444,2]
[378265375,1754806240934,-460.0,0.00021445,2]
[378265376,1754806240944,-151.13396749,0.00021445,2]
[378265377,1754806240953,-464.55581458,0.00021445,2]
[378265378,1754806240965,-460.0,0.00021445,2]
[378265379,1754806240974,-460.0,0.00021445,2]
[378265380,1754806240984,-460.0,0.00021445,2]
[378265381,1754806240993,-460.0,0.00021445,2]
[378265382,1754806241003,-460.0,0.00021445,2]
[378265383,1754806241012,-460.0,0.00021445,2]
[378265384,1754806241025,-460.0,0.00021445,2]
[378265385,1754806241035,-460.0,0.00021445,2]
[378265386,1754806241044,-460.0,0.00021445,2]
[378265387,1754806241054,-460.0,0.00021445,2]
[378265388,1754806241065,-460.0,0.00021445,2]
[378265389,1754806241075,-460.0,0.00021445,2]
[378265390,1754806241084,-460.0,0.00021445,2]
[378265391,1754806241094,-460.0,0.00021445,2]
[378265392,1754806241104,-520.31,0.00021445,2]
[378265393,1754806241113,-500.8,0.00021445,2]
[378265394,1754806241122,-460.0,0.00021445,2]
[378265395,1754806241132,-460.0,0.00021445,2]
[378265396,1754806241141,-460.0,0.00021445,2]
[378265397,1754806241151,-460.0,0.00021445,2]
[378265398,1754806241159,-460.0,0.00021445,2]
[378265399,1754806241169,-460.0,0.00021445,2]
[378265400,1754806241179,-460.0,0.00021445,2]
[378265401,1754806241189,-1429.37,0.00021445,2]
[378265402,1754806241198,-460.0,0.00021445,2]
[378265403,1754806241207,-460.0,0.00021445,2]
[378265404,1754806241217,-460.0,0.00021445,2]
[378265405,1754806241226,-460.0,0.00021445,2]
[378265406,1754806241235,-460.0,0.00021445,2]
[378265407,1754806241245,-460.0,0.00021445,2]
[378265408,1754806241254,-460.0,0.00021445,2]
[378265409,1754806241263,-460.0,0.00021445,2]
[378265410,1754806241273,-460.0,0.00021445,2]
[378265411,1754806241282,-460.0,0.00021445,2]
[378265412,1754806241292,-460.0,0.00021445,2]
[378265413,1754806241302,-460.0,0.00021445,2]
[378265414,1754806241311,-460.0,0.00021445,2]
[378265415,1754806241321,-460.0,0.00021445,2]
[378265416,1754806241330,-460.0,0.00021445,2]
[378265417,1754806241340,-460.0,0.00021445,2]
[378265418,1754806241349,-460.0,0.00021445,2]
[378265419,1754806241358,-990.79,0.00021445,2]
[378265420,1754806241368,-460.0,0.00021445,2]
[378265421,1754806241377,-460.0,0.00021445,2]
[378265422,1754806241387,-460.0,0.00021446,2]
[378265423,1754806241396,-461.1116402,0.00021446,2]
[378265424,1754806241406,-460.0,0.00021446,2]
[378265425,1754806241415,-460.0,0.00021446,2]
[378265426,1754806241424,-460.0,0.00021446,2]
[378265427,1754806241433,-475.8896751,0.00021446,2]
[378265428,1754806241443,-460.0,0.00021446,2]
[378265429,1754806241452,-460.0,0.00021446,2]
[378265430,1754806241461,-460.0,0.00021446,2]
[378265431,1754806241471,-460.0,0.00021446,2]
[378265432,1754806241480,-460.0,0.00021446,2]
[378265433,1754806241489,-460.0,0.00021446,2]
[378265434,1754806241498,-460.0,0.00021446,2]
[378265435,1754806241507,-460.0,0.00021446,2]
[378265436,1754806241517,-460.0,0.00021446,2]
[378265437,1754806241526,-460.0,0.00021446,2]
[378265438,1754806241535,-200.14551929,0.00021446,2]
[378265439,1754806241545,-460.0,0.00021446,2]
[378265440,1754806241554,-460.0,0.00021446,2]
[378265441,1754806241563,-1144.01,0.00021446,2]
[378265442,1754806241572,-460.0,0.00021446,2]
[378265443,1754806241582,-460.0,0.00021446,2]
[378265444,1754806241591,-460.0,0.00021446,2]
[378265445,1754806241600,-460.0,0.00021446,2]
[378265446,1754806241609,-369.69146773,0.00021446,2]
[378265447,1754806241619,-199.61432816,0.00021446,2]
[378265448,1754806241628,-151.0,0.00021446,2]
[378265449,1754806241637,-460.0,0.00021446,2]
[378265450,1754806241646,-198.0,0.00021446,2]
[378265451,1754806241656,-268.2975092,0.00021446,2]
[378265452,1754806241665,-460.0,0.00021446,2]
[378265453,1754806241675,-151.0,0.00021446,2]
[378265454,1754806241684,-151.0,0.00021446,2]
[378265455,1754806241694,-460.0,0.00021446,2]
[378265456,1754806241704,-460.0,0.00021446,2]
[378265457,1754806241713,-460.0,0.00021446,2]
[378265458,1754806241723,-463.36,0.00021446,2]
[378265459,1754806241732,-461.74397713,0.00021446,2]
[378265460,1754806241742,-460.0,0.00021446,2]
[378265461,1754806241751,-460.0,0.00021446,2]
[378265462,1754806241760,-460.0,0.00021446,2]
[378265463,1754806241770,-460.0,0.00021494,2]
[378265464,1754806241780,-460.0,0.00021494,2]
[378265465,1754806241789,-460.0,0.00021494,2]
[378265466,1754806241798,-460.0,0.00021494,2]
[378265467,1754806241808,-589.57422289,0.00021655,2]
[378265468,1754806241817,-460.0,0.00021718,2]
[378265469,1754806241826,-460.0,0.00021719,2]
[378265470,1754806241836,-460.0,0.00021719,2]
[378265471,1754806241846,-460.0,0.00021719,2]
[378265472,1754806241855,-460.0,0.00021719,2]
[378265473,1754806241864,-460.0,0.00021719,2]
[378265474,1754806241874,-460.0,0.00021719,2]
[378265475,1754806241893,-460.0,0.00021719,2]
[378265476,1754806241903,-460.0,0.00021719,2]
[378265477,1754806241912,-460.0,0.00021719,2]
[378265478,1754806241921,-172.1,0.00021719,2]
[378265479,1754806241931,-460.0,0.00021719,2]
[378265480,1754806241940,-395.57,0.00021719,2]
[378265481,1754806241950,-460.0,0.00021719,2]
[378265482,1754806241959,-520.31,0.00021719,2]
[378265483,1754806241969,-500.8,0.00021719,2]
[378265484,1754806242137,-420.92344001,0.00021719,2]
[378265485,1754806242174,-460.0,0.00021719,2]
[378265486,1754806242185,-460.0,0.00021719,2]
[378265487,1754806242196,-460.0,0.00021719,2]
[378265488,1754806242205,-1429.37,0.00021719,2]
[378265489,1754806242215,-460.0,0.00021719,2]
[378265490,1754806242226,-460.0,0.00021719,2]
[378265491,1754806242237,-460.0,0.00021719,2]
[378265492,1754806242246,-460.0,0.00021719,2]
[378265493,1754806242256,-500.84070731,0.00021719,2]
[378265494,1754806242266,-498.48,0.00021719,2]
[378265495,1754806242276,-460.0,0.00021719,2]
[378265496,1754806242286,-460.0,0.00021719,2]
[378265497,1754806242296,-460.0,0.00021719,2]
[378265498,1754806242305,-460.0,0.00021719,2]
[378265499,1754806242315,-460.0,0.00021719,2]
[378265500,1754806242324,-460.0,0.00021719,2]
[378265501,1754806242334,-460.0,0.00021719,2]
[378265502,1754806242343,-460.0,0.00021719,2]
[378265503,1754806242353,-460.0,0.00021719,2]
[378265504,1754806242363,-460.0,0.00021719,2]
[378265505,1754806242372,-460.0,0.00021719,2]
[378265506,1754806242381,-990.79,0.00021719,2]
[378265507,1754806242391,-198.0,0.0002172,2]
[378265508,1754806242401,-293.07950289,0.0002172,2]
[378265509,1754806242410,-460.0,0.0002172,2]
[378265510,1754806242419,-460.0,0.0002172,2]
[378265511,1754806242429,-460.0,0.0002172,2]
[378265512,1754806242438,-460.0,0.0002172,2]
[378265513,1754806242449,-460.0,0.0002172,2]
[378265514,1754806242468,-460.0,0.0002172,2]
[378265515,1754806242484,-460.0,0.0002172,2]
[378265516,1754806242493,-460.0,0.0002172,2]
[378265517,1754806242502,-460.0,0.0002172,2]
[378265518,1754806242511,-579.24,0.0002172,2]
[378265519,1754806242520,-460.0,0.0002172,2]
[378265520,1754806242530,-460.0,0.0002172,2]
[378265521,1754806242540,-460.0,0.0002172,2]
[378265522,1754806242550,-460.0,0.0002172,2]
[378265523,1754806242559,-1144.01,0.0002172,2]
[378265524,1754806242568,-460.0,0.0002172,2]
[378265525,1754806242577,-460.0,0.0002172,2]
[378265526,1754806242587,-460.0,0.0002172,2]
[378265527,1754806242597,-460.0,0.0002172,2]
[378265528,1754806242612,-460.0,0.0002172,2]
[378265529,1754806242634,-460.0,0.0002172,2]
[378265530,1754806242643,-461.96324094,0.0002172,2]
[378265531,1754806242653,-460.0,0.0002172,2]
[378265532,1754806242661,-460.0,0.0002172,2]
[378265533,1754806242671,-463.36,0.0002172,2]
[378265534,1754806242680,-460.0,0.0002172,2]
[378265535,1754806242689,-460.0,0.00021768,2]
[378265536,1754806242699,-281.28693272,0.00021768,2]
[378265537,1754806242708,-460.0,0.00021768,2]
[378265538,1754806242717,-460.0,0.00021768,2]
[378265539,1754806242727,-500.0,0.00021773,2]
[378265540,1754806242736,-460.0,0.00021992,2]
[378265541,1754806242748,-460.0,0.00021993,2]
[378265542,1754806242758,-342.56,0.00021993,2]
[378265543,1754806242768,-460.0,0.00021993,2]
[378265544,1754806242777,-460.0,0.00021993,2]
[378265545,1754806242786,-460.0,0.00021993,2]
[378265546,1754806242796,-520.31,0.00021993,2]
[378265547,1754806242805,-500.8,0.00021993,2]
[378265548,1754806242814,-359.64,0.00021993,2]
[378265549,1754806242823,-206.14,0.00021993,2]
[378265550,1754806242833,-1429.37,0.00021993,2]
[378265551,1754806242842,-460.0,0.00021993,2]
[378265552,1754806242852,-460.0,0.00021993,2]
[378265553,1754806242861,-460.0,0.00021993,2]
[378265554,1754806242871,-460.0,0.00021993,2]
[378265555,1754806242880,-261.7,0.00021993,2]
[378265556,1754806242889,-302.3,0.00021993,2]
[378265557,1754806242899,-460.0,0.00021993,2]
[378265558,1754806242908,-344.58,0.00021993,2]
[378265559,1754806242917,-192.17610658,0.00021993,2]
[378265560,1754806242926,-460.16,0.00021993,2]
[378265561,1754806242936,-460.0,0.00021993,2]
[378265562,1754806242945,-460.0,0.00021993,2]
[378265563,1754806242954,-1641.83,0.00021993,2]
[378265564,1754806242963,-460.0,0.00021993,2]
[378265565,1754806242972,-460.0,0.00021993,2]
[378265566,1754806242981,-990.79,0.00021993,2]
[378265567,1754806242991,-316.18,0.00021994,2]
[378265568,1754806243000,-390.16,0.00021994,2]
[378265569,1754806243009,-460.0,0.00021994,2]
[378265570,1754806243021,-272.9,0.00021994,2]
[378265571,1754806243030,-460.0,0.00021994,2]
[378265572,1754806243039,-460.0,0.00021994,2]
[378265573,1754806243049,-460.0,0.00021994,2]
[378265574,1754806243059,-418.5,0.00021994,2]
[378265575,1754806243068,-460.0,0.00021994,2]
[378265576,1754806243078,-460.0,0.00021994,2]
[378265577,1754806243087,-1144.01,0.00021994,2]
[378265578,1754806243099,-460.0,0.00021994,2]
[378265579,1754806243110,-466.79607639,0.00021994,2]
[378265580,1754806243120,-460.0,0.00021994,2]
[378265581,1754806243129,-460.0,0.00021994,2]
[378265582,1754806243139,-463.36,0.00021994,2]
[378265583,1754806243148,-532.07921807,0.00021994,2]
[378265584,1754806243157,-552.3,0.00022,2]
[378265585,1754806243167,-460.0,0.00022042,2]
[378265586,1754806243176,-460.0,0.00022042,2]
[378265587,1754806243186,-160.0,0.0002226,2]
[378265588,1754806243196,-12668.57659669,0.0002226,2]
[378265589,1754806243205,-160.0,0.00022261,2]
[378265590,1754806243214,-160.0,0.00022261,2]
[378265591,1754806243224,-160.0,0.00022261,2]
[378265592,1754806243233,-160.0,0.00022261,2]
[378265593,1754806243243,-160.0,0.00022261,2]
[378265594,1754806243252,-231.96268195,0.00022261,2]
[378265595,1754806243261,-461.62346162,0.00022261,2]
[378265596,1754806243271,-843.0869304,0.00022261,2]
[378265597,1754806243280,-216.64838636,0.00022261,2]
[378265598,1754806243290,-160.0,0.00022261,2]
[378265599,1754806243299,-215.44987349,0.00022261,2]
[378265600,1754806243309,-460.0,0.00022266,2]
[378265601,1754806243318,-460.0,0.00022267,2]
[378265602,1754806243329,-318.9979287,0.00022267,2]
[378265603,1754806243338,-460.0,0.00022267,2]
[378265604,1754806243349,-460.0,0.00022267,2]
[378265605,1754806243361,-520.31,0.00022267,2]
[378265606,1754806243370,-500.8,0.00022267,2]
[378265607,1754806243380,-1429.37,0.00022267,2]
[378265608,1754806243390,-206.56,0.00022267,2]
[378265609,1754806243400,-460.0,0.00022267,2]
[378265610,1754806243409,-460.0,0.00022267,2]
[378265611,1754806243419,-460.0,0.00022267,2]
[378265612,1754806243428,-460.0,0.00022267,2]
[378265613,1754806243438,-460.0,0.00022267,2]
[378265614,1754806243448,-460.0,0.00022267,2]
[378265615,1754806243458,-460.0,0.00022267,2]
[378265616,1754806243467,-460.0,0.00022267,2]
[378265617,1754806243476,-990.79,0.00022267,2]
[378265618,1754806243486,-460.0,0.00022268,2]
[378265619,1754806243496,-2169.33940905,0.00022268,2]
[378265620,1754806243505,-460.0,0.00022268,2]
[378265621,1754806243515,-460.0,0.00022268,2]
[378265622,1754806243524,-177.39,0.00022268,2]
[378265623,1754806243533,-157.94,0.00022268,2]
[378265624,1754806243542,-460.0,0.00022268,2]
[378265626,1754806243553,-1144.01,0.00022268,2]
[378265627,1754806243562,-460.0,0.00022268,2]
[378265628,1754806243573,-460.0,0.00022268,2]
[378265629,1754806243582,-460.0,0.00022268,2]
[378265630,1754806243591,-463.36,0.00022268,2]
[378265631,1754806243601,-793.92,0.00022272,10]
[378265632,1754806243610,-158.07,0.00022272,10]
[378265633,1754806243620,-790.38,0.00022272,10]
[378265634,1754806243629,-588.29,0.00022316,2]
[378265635,1754806243639,-460.0,0.00022316,2]
[378265636,1754806243648,-334.53528471,0.00022321,2]
[378265641,1754806244129,-464.51985424,0.00021444,2]
[378265642,1754806244139,-432.13014576,0.00021444,2]
[378265643,1754806244150,-30.66704808,0.00021444,2]
[378265644,1754806244160,-460.0,0.00021444,2]
[378265645,1754806244169,-246.40607192,0.00021446,2]
[378265646,1754806244181,-226.49535308,0.00021446,2]
[378265647,1754806244191,-460.0,0.00021718,2]
[378265648,1754806244200,-460.0,0.00021719,2]
[378265649,1754806244210,-460.0,0.00021719,2]
[378265650,1754806244219,-222.06328692,0.00021992,2]
[378265651,1754806244231,-237.93671308,0.00021992,2]
[378265652,1754806244240,-460.0,0.00021993,2]
[378265653,1754806244250,-140.06328687,0.00021993,2]
[378265654,1754806244265,-319.93671313,0.00021993,2]
[378265655,1754806244274,-460.0,0.00022266,2]
[378265656,1754806244284,-460.0,0.00022267,2]
[378265657,1754806244293,-460.0,0.00022267,2]
[378265658,1754806244305,-665.46471529,0.00022321,2]
[378265659,1754806244314,-200.0,0.00022514,15]
[378265660,1754806244323,-460.0,0.0002254,2]
[378265661,1754806244333,-460.0,0.0002254,2]
[378265662,1754806244342,-460.0,0.00022541,2]
[378265663,1754806244351,-460.0,0.00022541,2]
[378265664,1754806244360,-520.31,0.00022541,2]
[378265665,1754806244370,-500.8,0.00022541,2]
[378265666,1754806244380,-1429.37,0.00022541,2]
[378265667,1754806244389,-460.0,0.00022541,2]
[378265668,1754806244399,-460.0,0.00022541,2]
[378265669,1754806244408,-460.0,0.00022541,2]
[378265670,1754806244417,-460.0,0.00022541,2]
[378265671,1754806244427,-460.0,0.00022541,2]
[378265672,1754806244436,-460.0,0.00022541,2]
[378265673,1754806244445,-460.0,0.00022541,2]
[378265674,1754806244454,-192.92,0.00022541,2]
[378265675,1754806244463,-990.79,0.00022541,2]
[378265676,1754806244472,-460.0,0.00022541,2]
[378265677,1754806244481,-460.0,0.00022541,2]
[378265678,1754806244491,-460.0,0.00022542,2]
[378265679,1754806244500,-460.0,0.00022542,2]
[378265680,1754806244510,-460.0,0.00022542,2]
[378265681,1754806244519,-460.0,0.00022542,2]
[378265682,1754806244528,-1144.01,0.00022542,2]
[378265683,1754806244538,-460.0,0.00022542,2]
[378265684,1754806244547,-460.0,0.00022542,2]
[378265685,1754806244556,-460.0,0.00022542,2]
[378265686,1754806244565,-463.36,0.00022542,2]
[378265687,1754806244575,-208.38210824,0.0002259,2]
[378265688,1754806244590,-251.61789176,0.0002259,2]
[378265689,1754806244600,-967.44543557,0.00022778,2]
[378265690,1754806244609,-718.67768973,0.00022778,2]
[378265691,1754806244618,-348.19,0.00022806,10]
[378265692,1754806244627,-460.0,0.00022814,2]
[378265693,1754806244636,-292.42510258,0.00022815,2]
[378265694,1754806244645,-460.0,0.00022815,2]
[378265695,1754806244654,-520.31,0.00022815,2]
[378265696,1754806244663,-402.86490644,0.00022815,2]
[378265697,1754806244675,-97.93509356,0.00022815,2]
[378265698,1754806244685,-1429.37,0.00022815,2]
[378265699,1754806244694,-460.0,0.00022815,2]
[378265700,1754806244704,-460.0,0.00022815,2]
[378265701,1754806244714,-460.0,0.00022815,2]
[378265702,1754806244723,-460.0,0.00022815,2]
[378265703,1754806244732,-460.0,0.00022815,2]
[378265704,1754806244742,-460.0,0.00022815,2]
[378265705,1754806244751,-460.0,0.00022815,2]
[378265706,1754806244760,-990.79,0.00022815,2]
[378265707,1754806244769,-460.0,0.00022815,2]
[378265708,1754806244779,-460.0,0.00022815,2]
[378265709,1754806244788,-460.0,0.00022816,2]
[378265710,1754806244798,-460.0,0.00022816,2]
[378265711,1754806244807,-460.0,0.00022816,2]
[378265712,1754806244816,-460.0,0.00022816,2]
[378265713,1754806244826,-1144.01,0.00022816,2]
[378265714,1754806244835,-460.0,0.00022816,2]
[378265715,1754806244844,-460.0,0.00022816,2]
[378265716,1754806244853,-463.36,0.00022816,2]
[378265717,1754806244863,-460.0,0.00022864,2]
[378265718,1754806244872,-316.53490844,0.00022868,2]
[378265720,1754806246714,-460.0,0.00021446,2]
[378265721,1754806246724,-226.64,0.00022,2]
[378265722,1754806246733,-303.84197912,0.00022266,2]
[378265723,1754806246742,-516.68775025,0.00022266,2]
[378265724,1754806246752,-166.73276325,0.00022266,2]
[378265725,1754806246762,-366.72116026,0.00022266,2]
[378265726,1754806246771,-500.0,0.00022266,2]
[378265727,1754806246781,-500.0,0.00022266,2]
[378265728,1754806246790,-434.74447237,0.00022266,2]
[378265729,1754806246800,-460.0,0.00022814,2]
[378265730,1754806246810,-1183.46509156,0.00022868,2]
[378265731,1754806246819,-212.31,0.0002299,2]
[378265732,1754806246829,-250.71,0.00023,2]
[378265733,1754806246838,-460.0,0.00023088,2]
[378265734,1754806246847,-437.8,0.00023088,2]
[378265735,1754806246856,-460.0,0.00023089,2]
[378265736,1754806246866,-151.0,0.00023089,7]
[378265737,1754806246875,-520.31,0.00023089,2]
[378265738,1754806246884,-500.8,0.00023089,2]
[378265739,1754806246894,-1429.37,0.00023089,2]
[378265740,1754806246903,-460.0,0.00023089,2]
[378265741,1754806246912,-460.0,0.00023089,2]
[378265742,1754806246921,-460.0,0.00023089,2]
[378265743,1754806246931,-567.2,0.00023089,2]
[378265744,1754806246940,-460.0,0.00023089,2]
[378265745,1754806246949,-460.0,0.00023089,2]
[378265746,1754806246959,-151.0,0.00023089,7]
[378265747,1754806246971,-460.0,0.00023089,2]
[378265748,1754806246981,-990.79,0.00023089,2]
[378265749,1754806246990,-460.0,0.00023089,2]
[378265750,1754806247000,-231.96,0.00023089,2]
[378265751,1754806247009,-460.0,0.0002309,2]
[378265752,1754806247019,-134.00767018,0.0002309,2]
[378265754,1754806247033,-325.99232982,0.0002309,2]
[378265755,1754806247043,-460.0,0.0002309,2]
[378265756,1754806247054,-460.0,0.0002309,2]
[378265757,1754806247064,-1144.01,0.0002309,2]
[378265760,1754806247193,-460.0,0.0002309,2]
[378265761,1754806247203,-151.0,0.0002309,7]
[378265762,1754806247212,-460.0,0.0002309,2]
[378265763,1754806247222,-463.36,0.0002309,2]
[378265764,1754806247231,-460.0,0.00023138,2]
[378265765,1754806247240,-151.0,0.00023183,7]
[378265766,1754806247250,-552.3,0.00023184,2]
[378265767,1754806247259,-420.0,0.00023314,2]
[378265768,1754806247269,-151.0,0.00023316,7]
[378265769,1754806247278,-250.0,0.0002333,2]
[378265770,1754806247288,-460.0,0.00023362,2]
[378265771,1754806247298,-460.0,0.00023363,2]
[378265772,1754806247307,-520.31,0.00023363,2]
[378265773,1754806247317,-500.8,0.00023363,2]
[378265774,1754806247326,-1429.37,0.00023363,2]
[378265775,1754806247336,-460.0,0.00023363,2]
[378265776,1754806247345,-460.0,0.00023363,2]
[378265777,1754806247354,-460.0,0.00023363,2]
[378265778,1754806247364,-460.0,0.00023363,2]
[378265779,1754806247373,-460.0,0.00023363,2]
[378265780,1754806247382,-460.0,0.00023363,2]
[378265781,1754806247391,-990.79,0.00023363,2]
[378265782,1754806247400,-460.0,0.00023363,2]
[378265783,1754806247409,-340.92,0.00023364,2]
[378265784,1754806247419,-572.14813,0.00023364,2]
[378265785,1754806247428,-460.0,0.00023364,2]
[378265786,1754806247437,-460.0,0.00023364,2]
[378265787,1754806247446,-1144.01,0.00023364,2]
[378265788,1754806247455,-460.0,0.00023364,2]
[378265789,1754806247464,-460.0,0.00023364,2]
[378265790,1754806247473,-100.35568976,0.00023364,2]
[378265791,1754806247485,-363.00431024,0.00023364,2]
[378265792,1754806247494,-589.57422289,0.00023409,2]
[378265793,1754806247504,-460.0,0.00023412,2]
[378265794,1754806247513,-1545.04326667,0.00023416,2]
[378265795,1754806247522,-160.0,0.00023421,2]
[378265796,1754806247532,-1103.0,0.00023426,2]
[378265797,1754806247541,-160.04227509,0.00023452,2]
[378265798,1754806247550,-971.0,0.00023543,2]
[378265799,1754806247560,-636.0,0.00023543,2]
[378265800,1754806247569,-2150.0,0.00023543,2]
[378265801,1754806247578,-151.0,0.00023552,2]
[378265802,1754806247588,-460.0,0.00023636,2]
[378265803,1754806247597,-460.0,0.00023637,2]
[378265804,1754806247607,-520.31,0.00023637,2]
[378265805,1754806247617,-500.8,0.00023637,2]
[378265806,1754806247626,-1429.37,0.00023637,2]
[378265807,1754806247635,-460.0,0.00023637,2]
[378265808,1754806247644,-460.0,0.00023637,2]
[378265809,1754806247653,-460.0,0.00023637,2]
[378265810,1754806247662,-460.0,0.00023637,2]
[378265811,1754806247671,-460.0,0.00023637,2]
[378265812,1754806247680,-219.42,0.00023637,2]
[378265813,1754806247690,-990.79,0.00023637,2]
[378265814,1754806247699,-460.0,0.00023637,2]
[378265815,1754806247709,-460.0,0.00023638,2]
[378265816,1754806247718,-460.0,0.00023638,2]
[378265817,1754806247727,-1144.01,0.00023638,2]
[378265818,1754806247736,-460.0,0.00023638,2]
[378265819,1754806247745,-460.0,0.00023638,2]
[378265820,1754806247754,-65.9437904,0.00023638,2]
[378265821,1754806248216,-397.4162096,0.00023638,2]
[378265822,1754806248225,-339.6637904,0.00023686,2]
[378265823,1754806248237,-120.3362096,0.00023686,2]
[378265824,1754806248246,-151.0,0.00023687,7]
[378265825,1754806248255,-150.0,0.00023688,2]
[378265826,1754806248264,-150.0,0.00023688,2]
[378265827,1754806248274,-680.2,0.00023835,3]
[378265828,1754806248283,-576.0693954,0.0002386,2]
[378265829,1754806248294,-423.9306046,0.0002386,2]
[378265830,1754806248303,-178.76597063,0.000239,2]
[378265831,1754806248313,-235.25342472,0.0002391,2]
[378265832,1754806248324,-224.74657528,0.0002391,2]
[378265833,1754806248333,-460.0,0.00023911,2]
[378265834,1754806248343,-520.31,0.00023911,2]
[378265835,1754806248352,-500.8,0.00023911,2]
[378265836,1754806248361,-1429.37,0.00023911,2]
[378265837,1754806248370,-408.55284572,0.00023911,2]
[378265840,1754806309314,975.29360603,0.000199,2]
[378265841,1754806400292,241.323091,0.00013699,2]
[378265842,1754806400531,241.323091,0.00020187,2]
[378265844,1754806437623,21117.27781539,0.00020445,2]
[378265845,1754806437645,23437.50248391,0.00020445,2]
[378265846,1754806439069,170.501277,0.00020609,2]
[378265847,1754806483081,1683.45111483,0.000199,2]
[378265904,1754806652837,14708.54512426,0.00020444,2]
[378265905,1754806652860,10191.45487574,0.00020444,2]
[378265906,1754806685028,218.12018665,0.00020801,2]
[378265907,1754806729070,1627.33607764,0.000199,2]
[378265908,1754806843701,166.015776,0.00020444,2]
[378265909,1754806843901,166.015776,0.00020495,2]
[378265910,1754806844109,166.015776,0.00020546,2]
[378265911,1754806844315,166.015776,0.00020598,2]
[378265912,1754806844537,166.015776,0.00020649,2]
[378265924,1754806927713,250.0,0.00020157,2]
[378265931,1754806948191,1399.30847441,0.000199,2]
[378265933,1754807141530,4550.63746763,0.0003,120]
[378265934,1754807158870,1352.66485849,0.000199,2]
[378265935,1754807204660,386.09406772,0.000189,2]
[378265936,1754807216075,177.53081,0.00020444,2]
[378265939,1754807313894,1430.0531925,0.00027408,120]
[378265940,1754807323883,23567.41176935,0.0002,2]
[378265941,1754807323904,33326.006853,0.0002,2]
[378265942,1754807324331,3321.21144438,0.00019,2]
[378265943,1754807325925,13111.3490767,0.0002489,30]
[378265944,1754807359332,160.0,0.0002,3]
[378265945,1754807370489,1307.46320128,0.000199,2]
[378265946,1754807417403,1885.31850134,0.00020605,2]
[378265947,1754807417425,10340.29466406,0.00020605,2]
[378265999,1754807436981,-612.85617169,0.00021342,2]
[378266000,1754807436992,-184.74382767,0.00021343,2]
[378266001,1754807437003,-140.85401189,0.00021343,2]
[378266002,1754807437013,-325.59783956,0.00021344,2]